fUSD/lending_fUSD_20250401
["ID","MTS","AMOUNT","RATE_DAILY","PERIOD"]
[356955652,1743484245546,-1237.2,0.00052789,61]
[356955653,1743484245599,-252.71462698,0.00052789,61]
[356955660,1743485108168,100000.0,0.00015,2]
[356955661,1743485108193,30000.0,0.00015,2]
[356955662,1743485110874,-150.02065061,0.00015,2]
[356955665,1743485196628,-300.0,0.00015,2]
[356955666,1743485217543,-150.0,0.000149,2]
[356955670,1743485278614,310.40493326,0.0001,2]
[356955678,1743485297942,-6789.04510326,0.000149,2]
[356955682,1743485322830,-747.13700537,0.000149,2]
[356955691,1743485373034,-301.83487614,0.000149,2]
[356955692,1743485373063,-194.61320541,0.000149,2]
[356955694,1743485373093,-167.3914751,0.000149,2]
[356955695,1743485373122,-5046.9187398,0.000149,2]
[356955696,1743485398208,-302.03678146,0.000149,2]
[356955697,1743485398237,-9479.29244875,0.000149,2]
[356955698,1743485398271,-1048.51410964,0.000149,2]
[356955699,1743485398309,-9781.32923021,0.000149,2]
[356955700,1743485401345,-218.7935,0.000149,2]
[356955712,1743485431557,-7919.37190231,0.000149,2]
[356955713,1743485431834,-1818.0785068,0.000149,2]
[356955754,1743485437494,-290.07505258,0.000149,2]
[356955756,1743485437504,-30555.45475027,0.00014911,2]
[356955758,1743485437515,-150.0,0.00014921,2]
[356955760,1743485437524,-30555.45475027,0.00014922,2]
[356955762,1743485437533,-30555.45475027,0.00014933,2]
[356955764,1743485437542,-17434.01769297,0.00014944,2]
[356955765,1743485437607,-829.36323944,0.00014944,2]
[356955766,1743485437618,-778.63676056,0.00014944,2]
[356955767,1743485437665,-1431.78816892,0.00014944,2]
[356955768,1743485437726,-7828.79321979,0.00014944,2]
[356955784,1743485439744,-309.90335189,0.00014944,2]
[356955787,1743485439803,-1201.78401031,0.00014944,2]
[356955788,1743485440091,-741.16830639,0.00014944,2]
[356955789,1743485440100,-1965.28881893,0.00014956,2]
[356955790,1743485440155,-505.76002506,0.00014956,2]
[356955791,1743485440166,-380.39999901,0.00014956,2]
[356955792,1743485440216,-5081.88681,0.00014956,2]
[356955805,1743485442713,-2268.0001,0.00014956,2]
[356955831,1743485443613,-13430.6190548,0.00014956,2]
[356955832,1743485443624,-4430.0000001,0.00014956,2]
[356955881,1743485445664,-318.33091079,0.00014956,2]
[356955885,1743485445760,-2175.16903158,0.00014956,2]
[356955886,1743485445770,-30555.45475027,0.00014967,2]
[356955887,1743485445780,-30555.45475027,0.00014978,2]
[356955888,1743485445789,-30555.45475027,0.00014989,2]
[356955889,1743485445799,-3386594.06572294,0.00015,2]
[356955890,1743485445811,-464.20485984,0.00015,2]
[356955891,1743485445822,-480.48,0.00015,2]
[356955892,1743485445842,-3638.89547412,0.00015,2]
[356955893,1743485445854,-3875.79999992,0.00015,2]
[356955894,1743485445922,-1150.00001,0.00015,2]
[356955896,1743485898658,1000.0,0.00029,120]
[356955897,1743485911068,179.012,0.000147,2]
[356955898,1743485946471,-157.06257029,0.0001489,2]
[356955899,1743485946493,-4.33291772,0.0001489,2]
[356955902,1743486054703,327.19062252,0.000148,2]
[356955906,1743486382679,-530.0,0.000149,2]
[356955907,1743486427866,183.438661,7.945e-05,2]
[356955908,1743486457065,3677.1055117,0.00034133,30]
[356955909,1743486613748,-1000.0,0.000149,2]
[356955911,1743486631962,-1385.77204,0.000149,2]
[356955912,1743486632020,-505.95,0.000149,2]
[356955913,1743486632031,-615.1,0.000149,2]
[356955914,1743486632079,-1116.91864181,0.000149,2]
[356955915,1743486632088,-613.02672966,0.000149,2]
[356955916,1743486632097,-303.32119403,0.000149,2]
[356955917,1743486632108,-4062.79194564,0.000149,2]
[356955925,1743486637911,-25648.49266033,0.000149,2]
[356955926,1743486637921,-5885.80973708,0.0001498,2]
[356955927,1743486637945,-0.13288839,0.0001498,2]
[356955935,1743486640088,-266.775,0.0001498,2]
[356955944,1743486642923,-817.71934596,0.0001498,2]
[356955952,1743486643965,-492.48759764,0.0001498,2]
[356955956,1743486645837,-2753.57242242,0.0001498,2]
[356955957,1743486645849,-554.28,0.0001498,2]
[356955958,1743486645860,-1056.09999,0.0001498,2]
[356955959,1743486645895,-1370.17109925,0.0001498,2]
[356956016,1743486939999,-1000.0,0.000149,2]
[356956017,1743486941292,-1000.0,0.000149,2]
[356956018,1743486942732,-1000.0,0.000149,2]
[356956019,1743486968292,249.72149,0.0001498,13]
[356956020,1743487008723,-1000.0,0.000149,2]
[356956021,1743487010420,-39.4859,0.000149,2]
[356956022,1743487010443,-960.5141,0.000149,2]
[356956023,1743487054185,290.23,0.00014889,2]
[356956024,1743487111071,181.135,0.000147,2]
[356956025,1743487161974,300.0,0.000146,5]
[356956026,1743487162123,378.88,0.00026558,120]
[356956027,1743487162329,378.88,0.00029878,120]
[356956028,1743487164070,700.0,0.000147,5]
[356956029,1743487166213,1100.0,0.000148,5]
[356956030,1743487168491,1400.0,0.000149,5]
[356956031,1743487240763,-663.00851678,0.000149,2]
[356956032,1743487240792,-4439.12430748,0.000149,2]
[356956033,1743487240818,-1656.0,0.000149,2]
[356956034,1743487240845,-167.75089619,0.000149,2]
[356956035,1743487240870,-375.12032341,0.00014973,2]
[356956036,1743487240895,-33342.57626978,0.0001499,2]
[356956037,1743487240920,-150.0,0.00014999,2]
[356956038,1743487240945,-300.0,0.00014999,2]
[356956039,1743487240970,-300.0,0.00014999,2]
[356956040,1743487241000,-158606.41968636,0.00015,2]
[356956041,1743487247812,249.72149,0.00015,13]
[356956042,1743487473579,-4859.67456675,0.000149,2]
[356956043,1743487473605,-260.794,0.000149,2]
[356956044,1743487473635,-94879.53143325,0.00015,2]
[356956045,1743487484018,-176.55255507,0.000149,2]
[356956046,1743487484049,-24823.44744493,0.00015,2]
[356956047,1743487484966,-25000.0,0.00015,2]
[356956048,1743487485645,-25000.0,0.00015,2]
[356956049,1743487486372,-25000.0,0.00015,2]
[356956050,1743487487051,-25000.0,0.00015,2]
[356956051,1743487487803,-25000.0,0.00015,2]
[356956052,1743487488557,-25000.0,0.00015,2]
[356956053,1743487489518,-18614.55511668,0.00015,2]
[356956054,1743487489545,-6385.44488332,0.00015,2]
[356956055,1743487490035,-25000.0,0.00015,2]
[356956056,1743487490941,-25000.0,0.00015,2]
[356956057,1743487491948,-25000.0,0.00015,2]
[356956058,1743487492850,-25000.0,0.00015,2]
[356956059,1743487493672,-25000.0,0.00015,2]
[356956060,1743487494483,-25000.0,0.00015,2]
[356956061,1743487495244,-25000.0,0.00015,2]
[356956062,1743487495960,-25000.0,0.00015,2]
[356956063,1743487497361,-25000.0,0.00015,2]
[356956064,1743487498134,-153.34869191,0.000149,2]
[356956065,1743487498160,-24846.65130809,0.00015,2]
[356956066,1743487502637,-25000.0,0.00015,2]
[356956067,1743487503262,-25000.0,0.00015,2]
[356956068,1743487504029,-25000.0,0.00015,2]
[356956069,1743487504747,-25000.0,0.00015,2]
[356956070,1743487505472,-25000.0,0.00015,2]
[356956071,1743487506294,-25000.0,0.00015,2]
[356956072,1743487506976,-25000.0,0.00015,2]
[356956073,1743487507735,-25000.0,0.00015,2]
[356956074,1743487508444,-25000.0,0.00015,2]
[356956075,1743487509220,-25000.0,0.00015,2]
[356956076,1743487509948,-25000.0,0.00015,2]
[356956077,1743487510556,-25000.0,0.00015,2]
[356956078,1743487511469,-25000.0,0.00015,2]
[356956079,1743487511961,-25000.0,0.00015,2]
[356956080,1743487512652,-25000.0,0.00015,2]
[356956081,1743487513310,-25000.0,0.00015,2]
[356956082,1743487514028,-25000.0,0.00015,2]
[356956083,1743487514655,-25000.0,0.00015,2]
[356956084,1743487515382,-25000.0,0.00015,2]
[356956085,1743487516002,-25000.0,0.00015,2]
[356956086,1743487516713,-25000.0,0.00015,2]
[356956087,1743487517350,-25000.0,0.00015,2]
[356956088,1743487518093,-25000.0,0.00015,2]
[356956089,1743487518842,-25000.0,0.00015,2]
[356956090,1743487519431,-25000.0,0.00015,2]
[356956091,1743487520167,-25000.0,0.00015,2]
[356956092,1743487520760,-25000.0,0.00015,2]
[356956093,1743487521443,-25000.0,0.00015,2]
[356956094,1743487522187,-25000.0,0.00015,2]
[356956095,1743487522899,-25000.0,0.00015,2]
[356956096,1743487523897,-25000.0,0.00015,2]
[356956097,1743487525834,-25000.0,0.00015,2]
[356956098,1743487526650,-25000.0,0.00015,2]
[356956099,1743487527390,-25000.0,0.00015,2]
[356956100,1743487528210,-967.7097,0.000149,2]
[356956101,1743487528239,-24032.2903,0.00015,2]
[356956102,1743487528988,-25000.0,0.00015,2]
[356956103,1743487529989,-25000.0,0.00015,2]
[356956104,1743487530713,-25000.0,0.00015,2]
[356956105,1743487531621,-25000.0,0.00015,2]
[356956106,1743487532002,-25000.0,0.00015,2]
[356956107,1743487532421,-25000.0,0.00015,2]
[356956108,1743487533511,-25000.0,0.00015,2]
[356956109,1743487534442,-25000.0,0.00015,2]
[356956110,1743487535193,-25000.0,0.00015,2]
[356956111,1743487535951,-25000.0,0.00015,2]
[356956112,1743487536716,-25000.0,0.00015,2]
[356956113,1743487537430,-25000.0,0.00015,2]
[356956114,1743487538197,-25000.0,0.00015,2]
[356956115,1743487539719,-25000.0,0.00015,2]
[356956116,1743487540337,-25000.0,0.00015,2]
[356956117,1743487541400,-25000.0,0.00015,2]
[356956118,1743487542377,-25000.0,0.00015,2]
[356956119,1743487543611,-25000.0,0.00015,2]
[356956120,1743487545072,-25000.0,0.00015,2]
[356956121,1743487547178,-25000.0,0.00015,2]
[356956122,1743487548438,-25000.0,0.00015,2]
[356956123,1743487550156,-25000.0,0.00015,2]
[356956124,1743487586667,219.73762386,0.00014999,5]
[356956125,1743487623724,166.48099,0.00015,13]
[356956126,1743487633005,168.96209584,0.00034129,120]
[356956127,1743487670497,-35541.2024,0.000149,2]
[356956128,1743487670521,-164458.7976,0.00015,2]
[356956129,1743487692989,-300000.0,0.00015,2]
[356956130,1743487748437,-46000.0,0.00015,2]
[356956143,1743487831935,-942.90278584,0.00015,2]
[356956144,1743487831946,-208.20275593,0.000189,2]
[356956145,1743487831956,-161.05466023,0.000189,2]
[356956146,1743487831967,-161.0,0.00018999,2]
[356956147,1743487831977,-2938.45049856,0.00019,2]
[356956148,1743487831990,-1636.40686014,0.00019,2]
[356956149,1743487832002,-485.11,0.00019,2]
[356956150,1743487832109,-359.189994,0.00019,2]
[356956151,1743487832168,-405.1,0.00019,2]
[356956152,1743487832181,-497.35,0.00019,2]
[356956153,1743487832193,-308.128,0.00019,2]
[356956166,1743487837866,-572.98716333,0.00019,2]
[356956167,1743487837971,-255.7999998,0.00019,2]
[356956168,1743487838082,-6386.40651764,0.00019,2]
[356956395,1743487840690,-5136.38644486,0.00019,2]
[356956396,1743487840699,-225.95298744,0.00019,2]
[356956397,1743487840708,-170.35175788,0.00019,2]
[356956398,1743487840718,-4859.67456669,0.00019626,2]
[356956399,1743487840727,-166.48099,0.0002,13]
[356956400,1743487840736,-4859.67456669,0.00024352,2]
[356956401,1743487840745,-151.0,0.000249,7]
[356956402,1743487840755,-190.331281,0.000249,7]
[356956403,1743487840764,-151.0,0.000249,7]
[356956404,1743487840773,-151.0,0.000249,7]
[356956405,1743487840782,-155.800075,0.000249,7]
[356956406,1743487840790,-151.0,0.000249,7]
[356956407,1743487840799,-151.0,0.000249,7]
[356956408,1743487840808,-151.0,0.000249,7]
[356956409,1743487840817,-151.0,0.000249,7]
[356956410,1743487840826,-151.0,0.000249,7]
[356956411,1743487840838,-156.188509,0.000249,7]
[356956412,1743487840848,-151.0,0.000249,7]
[356956413,1743487840858,-200.0,0.000249,9]
[356956414,1743487840868,-166.48099,0.00025,13]
[356956415,1743487840878,-449.5,0.00025852,2]
[356956416,1743487840888,-152.17,0.00026849,2]
[356956417,1743487840897,-155.52,0.00026849,2]
[356956418,1743487840907,-19149.56414856,0.00027039,2]
[356956436,1743487844707,-1039.9999,0.00027039,2]
[356956468,1743487846216,-111.33701439,0.00027039,2]
[356956469,1743487846306,-3599.09893705,0.00027039,2]
[356956470,1743487846316,-671.0,0.00027463,5]
[356956471,1743487846328,-1530.72,0.00027825,5]
[356956472,1743487846338,-502.36955627,0.00027867,5]
[356956473,1743487846348,-500.0,0.00027871,5]
[356956474,1743487846359,-449.5,0.00028116,2]
[356956475,1743487846368,-378.46950734,0.000282,5]
[356956476,1743487846377,-250.0,0.00028495,2]
[356956477,1743487846386,-170.98,0.00028659,2]
[356956478,1743487846397,-4859.67456669,0.00029078,2]
[356956479,1743487846406,-11300.0,0.0003,5]
[356956480,1743487846415,-246.05318441,0.0003038,2]
[356956481,1743487846427,-203.44681559,0.0003038,2]
[356956482,1743487846436,-73.86400041,0.000305,2]
[356956483,1743487846512,-427.26957842,0.000305,2]
[356956484,1743487846522,-200.0,0.00031,2]
[356956485,1743487846532,-208.20275588,0.00031222,2]
[356956486,1743487846542,-731.0,0.00032,5]
[356956487,1743487846551,-426.9836985,0.00032644,2]
[356956488,1743487846562,-22.5163015,0.00032644,2]
[356956489,1743487846571,-500.0,0.0003275,2]
[356956490,1743487846581,-498.65370407,0.0003275,5]
[356956491,1743487846590,-159.34,0.00032932,120]
[356956492,1743487846599,-525.63534604,0.00033129,5]
[356956493,1743487846609,-378.88,0.00033197,120]
[356956494,1743487846618,-297.38803826,0.00033446,5]
[356956495,1743487846628,-682.8582,0.00033704,2]
[356956496,1743487846637,-1090.32841013,0.00033804,2]
[356956497,1743487846648,-3769.34615656,0.00033804,2]
[356956498,1743487846658,-3881.06703313,0.000339,2]
[356956499,1743487846667,-500.0,0.000339,12]
[356956500,1743487846676,-342.2159,0.000339,2]
[356956501,1743487846686,-9843.82891827,0.0003399,2]
[356956502,1743487846695,-9827.76900739,0.0003399,2]
[356956503,1743487846704,-309.86424034,0.00033999,10]
[356956504,1743487846713,-108661.0,0.00034,30]
[356956505,1743487846722,-151.0,0.00034,7]
[356956506,1743487846732,-151.0,0.00034,7]
[356956507,1743487846742,-373.67363796,0.00034121,2]
[356956508,1743487846751,-1117.0,0.00034393,2]
[356956509,1743487846760,-449.5,0.00034908,2]
[356956510,1743487846770,-300.0,0.000351,2]
[356956511,1743487846779,-152.55,0.00035616,2]
[356956512,1743487846789,-614.0,0.00035852,2]
[356956513,1743487846798,-378.88,0.00036517,120]
[356956514,1743487846808,-155.52,0.00036862,2]
[356956515,1743487846817,-449.5,0.00037172,2]
[356956516,1743487846827,-500.0,0.00038229,2]
[356956517,1743487846836,-4859.67456669,0.0003853,2]
[356956518,1743487846846,-449.5,0.00039436,2]
[356956519,1743487846856,-378.88,0.00039837,120]
[356956520,1743487846865,-9843.82891827,0.00039949,3]
[356956521,1743487846874,-9827.76900739,0.00039949,3]
[356956522,1743487846883,-300.0,0.00041,2]
[356956523,1743487846892,-152.55,0.00041553,2]
[356956524,1743487846901,-449.5,0.00041699,2]
[356956525,1743487846910,-1000.0,0.00042248,2]
[356956526,1743487846919,-4859.67456669,0.00043256,15]
[356956527,1743487846928,-208.20275588,0.00043544,12]
[356956528,1743487846937,-500.0,0.00043836,120]
[356956529,1743487846946,-562.33792296,0.00043836,120]
[356956530,1743487846955,-449.5,0.00043963,2]
[356956531,1743487846964,-157.73,0.00044572,120]
[356956532,1743487846972,-167.18308128,0.0004489,28]
[356956533,1743487846981,-502.19994835,0.00044973,10]
[356956534,1743487846990,-500.0,0.00044973,10]
[356956535,1743487846999,-499.66022208,0.00044973,10]
[356956536,1743487847008,-153.75525002,0.00044973,10]
[356956537,1743487847017,-152.15533954,0.00044973,10]
[356956538,1743487847026,-39375.3156731,0.0004499,3]
[356956539,1743487847036,-20679.19206841,0.0004499,3]
[356956553,1743488754285,1270.56865278,0.0001489,2]
[356956555,1743488842601,200.0,0.000147,5]
[356956556,1743488844710,500.0,0.000148,5]
[356956557,1743488846844,800.0,0.000149,5]
[356956558,1743488862959,164.84,0.0001499,3]
[356956560,1743488906031,-25000.0,0.00015,2]
[356956561,1743488906889,-25000.0,0.00015,2]
[356956562,1743488907891,-25000.0,0.00015,2]
[356956563,1743488908830,-25000.0,0.00015,2]
[356956573,1743488925536,1606.20084943,0.00015,5]
[356956574,1743488938955,-731773.6298,0.00015,2]
[356956582,1743489003223,-1492.8747,0.000149,2]
[356956583,1743489003246,-150.0,0.0001495,2]
[356956584,1743489003269,-150.0,0.00014999,2]
[356956585,1743489003293,-697667.3931,0.00015,2]
[356956591,1743489032331,-1534.82658759,0.00015,2]
[356956614,1743489038068,-924.5,0.00015,2]
[356956615,1743489038150,-7540.58341033,0.00015,2]
[356956616,1743489038235,-1605.79062912,0.00015,2]
[356956617,1743489038302,-1887.54303387,0.00015,2]
[356956631,1743489040178,-367.293,0.00015,2]
[356956632,1743489040262,-1250.46736825,0.00015,2]
[356956633,1743489040274,-2150.11756893,0.00015,2]
[356956634,1743489040409,-945.6714108,0.00015,2]
[356956662,1743489044157,-8840.04416138,0.00015,2]
[356956668,1743489044309,-4058.2309764,0.00015,2]
[356956669,1743489044321,-931.44236042,0.00015,2]
[356956670,1743489044332,-8710.14999999,0.00015,2]
[356956671,1743489046050,-263863.24502997,0.00015,2]
[356956672,1743489046059,-212.0,0.00016124,2]
[356956674,1743489046069,-150.0,0.0001639,2]
[356956675,1743489046079,-167.18308125,0.000164,2]
[356956677,1743489046088,-350.0,0.000165,12]
[356956678,1743489046097,-150.0,0.00017442,2]
[356956679,1743489046108,-2000.0,0.0002,4]
[356956680,1743489046118,-350.0,0.00024411,12]
[356956681,1743489046127,-257238.485385,0.000248,2]
[356956682,1743489046137,-500.0,0.00024873,2]
[356956683,1743489046146,-161.15279143,0.00024873,2]
[356956684,1743489046156,-509.99994119,0.00024873,2]
[356956685,1743489046165,-500.0,0.00024873,2]
[356956686,1743489046175,-539.49536786,0.00024873,2]
[356956687,1743489046185,-502.20816352,0.00024873,2]
[356956688,1743489046194,-151.6,0.0002489,2]
[356956689,1743489046204,-151.6,0.0002489,2]
[356956690,1743489046213,-171963.29810159,0.000249,2]
[356956691,1743489046344,-500.1143347,0.000249,2]
[356956692,1743489046368,-8045.4476837,0.000249,2]
[356956703,1743489046974,-39683.91286555,0.000249,2]
[356956704,1743489046998,-6895.33,0.000249,2]
[356956705,1743489366146,158.34824,0.000249,34]
[356956706,1743489423727,166.48099,0.000249,34]
[356956707,1743489467749,4234.68251391,0.00034109,30]
[356956708,1743489551746,166.48099,0.000249,34]
[356956709,1743489765511,243.54,0.00013699,2]
[356956711,1743490232283,-307.8589,0.000249,2]
[356956712,1743490232293,-161.92,0.00026849,2]
[356956713,1743490232469,-175.77,0.00027297,2]
[356956714,1743490232479,-350.0,0.00027366,12]
[356956715,1743490232489,-387.57041409,0.00029305,2]
[356956716,1743490232499,-323.74,0.00032801,2]
[356956717,1743490232509,-261.11,0.00033379,120]
[356956718,1743490232519,-201.0,0.00033426,2]
[356956719,1743490232528,-1118.94729103,0.00033427,5]
[356956720,1743490232538,-2052.75689854,0.00033427,10]
[356956721,1743490232549,-4162.95,0.00033427,10]
[356956722,1743490232632,-393.98609223,0.00033427,10]
[356956723,1743490232644,-279.78527277,0.00033427,10]
[356956724,1743490232655,-302.0,0.00033427,10]
[356956725,1743490232761,-3267.5236569,0.00033427,10]
[356956726,1743490232773,-605.34661736,0.00033427,10]
[356956727,1743490232784,-269.4,0.00033427,10]
[356956787,1743490238206,-10332.9714622,0.00033427,10]
[356956788,1743490238216,-170.98,0.00033502,2]
[356956789,1743490238225,-198.57,0.00033529,2]
[356956790,1743490238235,-15417.75,0.00033623,2]
[356956791,1743490238244,-159.03,0.00033891,120]
[356956793,1743490238253,-224.25,0.00033996,2]
[356956794,1743490238262,-3946.67644816,0.00034009,2]
[356956795,1743490238271,-181.43871613,0.00034009,2]
[356956796,1743490238281,-902.787,0.00034009,2]
[356956797,1743490238290,-620.4928,0.00034009,2]
[356956798,1743490238300,-205.6,0.00034037,37]
[356956799,1743490238309,-896.33583795,0.00034099,2]
[356956800,1743490238319,-388.7469155,0.00034109,2]
[356956801,1743490238328,-37498.20357536,0.00034109,2]
[356956802,1743490238340,-4316.05,0.00034109,2]
[356956803,1743490238355,-2490.2400027,0.00034109,2]
[356956804,1743490238366,-24868.83895394,0.00034109,2]
[356956805,1743490238457,-285.15796394,0.00034109,2]
[356956812,1743490240511,-417.47,0.00034109,2]
[356956813,1743490240673,-7501.40674989,0.00034109,2]
[356956814,1743490240685,-8630.91702725,0.00034109,2]
[356956815,1743490241047,-558.36,0.00034109,2]
[356956816,1743490241059,-2067.1254876,0.00034109,2]
[356956844,1743490244545,-0.16265182,0.00034109,2]
[356956855,1743490246386,-830.96798316,0.00034109,2]
[356956856,1743490246530,-38292.4869,0.00034109,2]
[356956857,1743490246542,-1724.66,0.00034109,2]
[356956858,1743490246555,-3234.41314321,0.00034109,2]
[356956859,1743490246569,-3291.38964069,0.00034109,2]
[356956860,1743490246777,-464.2034053,0.00034109,2]
[356956884,1743491431543,-155.52,0.00026849,2]
[356956885,1743491431552,-350.0,0.00027521,12]
[356956886,1743491431561,-350.0,0.00028916,12]
[356956887,1743491431570,-350.0,0.00029534,12]
[356956888,1743491431579,-731.0,0.000296,5]
[356956889,1743491431588,-1330.6100124,0.00033427,5]
[356956890,1743491431597,-109.61244407,0.00034009,2]
[356956891,1743491431759,-317.10663541,0.00034009,2]
[356956892,1743491431980,-1894.92132052,0.00034009,2]
[356956893,1743491431990,-2753.57242242,0.00034102,2]
[356956894,1743491431999,-164.48,0.00034108,37]
[356956895,1743491432008,-150.0,0.00034111,2]
[356956896,1743491432017,-2401.83179175,0.00034112,2]
[356956901,1743491437606,-62000.88667805,0.00034112,2]
[356956902,1743491437616,-16255.16058748,0.00034112,2]
[356956903,1743491437626,-20510.22084739,0.00034733,2]
[356956904,1743491437635,-167.91,0.00035,2]
[356956905,1743491437644,-200.0,0.000351,2]
[356956906,1743491437653,-202.18,0.00035263,2]
[356956907,1743491437663,-210.88,0.00036195,120]
[356956908,1743491437672,-400.55094244,0.0003631,2]
[356956909,1743491437682,-161.92,0.00037863,2]
[356956910,1743491437691,-152.87,0.00038302,2]
[356956911,1743491437702,-152.87,0.00038314,2]
[356956912,1743491437714,-152.87,0.00038326,2]
[356956913,1743491437724,-152.87,0.00038338,2]
[356956914,1743491437734,-152.87,0.0003835,2]
[356956915,1743491437744,-152.87,0.00038362,2]
[356956916,1743491437753,-152.87,0.00038374,2]
[356956917,1743491437762,-152.87,0.00038386,2]
[356956918,1743491437772,-152.87,0.00038398,2]
[356956919,1743491437782,-152.87,0.0003841,2]
[356956920,1743491437792,-152.87,0.00038422,2]
[356956921,1743491437803,-152.87,0.00038434,2]
[356956922,1743491437813,-152.87,0.00038446,2]
[356956923,1743491437822,-152.87,0.00038458,2]
[356956924,1743491437832,-152.87,0.0003847,2]
[356956925,1743491437846,-152.87,0.00038482,2]
[356956927,1743491437856,-152.87,0.00038494,2]
[356956928,1743491437868,-307.55,0.00038618,2]
[356956929,1743491437880,-155.52,0.00039087,2]
[356956930,1743491437897,-152.55,0.00039269,2]
[356956933,1743491437912,-168.2,0.00039301,2]
[356956935,1743491437925,-152.52,0.00039301,2]
[356956936,1743491437937,-452.15,0.00039301,2]
[356956938,1743491437947,-698.7,0.00039301,2]
[356956939,1743491437957,-153.21,0.00039301,2]
[356956940,1743491437970,-150.0,0.00039301,2]
[356956941,1743491437980,-150.0,0.00039301,2]
[356956942,1743491437990,-150.0,0.00039301,2]
[356956943,1743491438003,-150.0,0.00039301,2]
[356956944,1743491438012,-250.0,0.0003941,2]
[356956945,1743491438022,-200.0,0.0003943,2]
[356956946,1743491438032,-200.0,0.0003943,2]
[356956947,1743491438042,-150.0,0.0003953,7]
[356956948,1743491438051,-190.2,0.00039572,2]
[356956949,1743491438061,-1646.0,0.000399,7]
[356956950,1743491438074,-150.0,0.00040556,2]
[356956951,1743491438085,-1000.0,0.00040591,2]
[356956952,1743491438096,-23900.0,0.00040657,2]
[356956953,1743491438106,-170.98,0.00040678,2]
[356956954,1743491438116,-158.81,0.00040779,120]
[356956955,1743491438125,-307.55,0.00040881,2]
[356956956,1743491438135,-300.0,0.00041,2]
[356956957,1743491438145,-500.0,0.00041346,2]
[356956958,1743491438155,-153.2402479,0.000417,10]
[356956959,1743491438166,-318.97595274,0.00042809,10]
[356956960,1743491438175,-500.0,0.00042809,10]
[356956961,1743491438185,-500.0,0.00042809,2]
[356956962,1743491438196,-584.22191053,0.00042809,7]
[356956963,1743491438207,-503.9205917,0.00042809,10]
[356956964,1743491438217,-307.55,0.00043145,2]
[356956965,1743491438227,-190.2,0.00043529,2]
[356956966,1743491438237,-150.02,0.00043588,30]
[356956967,1743491438247,-1000.0,0.000438,7]
[356956968,1743491438258,-200.0,0.00043963,10]
[356956969,1743491438270,-1327.79576034,0.0004409,10]
[356956970,1743491438282,-3648.06021338,0.000445,15]
[356956971,1743491438291,-150.0,0.00044531,2]
[356956972,1743491438302,-150.0,0.00044541,2]
[356956973,1743491438311,-150.0,0.00044548,2]
[356956974,1743491438321,-150.0,0.00044556,2]
[356956975,1743491438330,-150.0,0.00044556,2]
[356956976,1743491438341,-150.0,0.00044557,2]
[356956977,1743491438350,-150.0,0.00044557,2]
[356956978,1743491438359,-150.0,0.00044562,2]
[356956979,1743491438370,-150.0,0.00044566,2]
[356956980,1743491438379,-150.0,0.0004457,2]
[356956981,1743491438389,-150.0,0.00044574,2]
[356956982,1743491438399,-150.0,0.00044576,2]
[356956983,1743491438408,-150.0,0.00044579,2]
[356956984,1743491438419,-150.0,0.00044585,2]
[356956985,1743491438431,-150.0,0.00044586,2]
[356956986,1743491438441,-150.0,0.00044589,2]